Cogmind - Beta 10.1 @@@ ROGUE MODE // 2021.04.21 @ 03:16:23 Player: Farfid Result: Destroyed by H-55 Commando with Assault Rifle Performance ------------- Evolutions (0) 0 Regions Visited (3) 600 Robots Destroyed (2) 10 Value Destroyed (120) 120 Prototype IDs (23) 460 Alien Tech Used (0) 0 Bonus (300) 300 TOTAL SCORE: 1490 Bonus ------- Aligned with FarCom 300 Cogmind --------- Core Integrity 0/250 Matter 300/300 Energy 99/100 System Corruption 3% Temperature Cool (0) Movement Core (50) Location -10/Exiles Parts ------- > --- POWER (1) -------- (None) > --- PROPULSION (2) --- (None) > --- UTILITY (2) ------ (None) > --- WEAPON (2) ------- Makeshift Spear > --- INVENTORY (4) ---- Ion Engine AWS/Autocannon Peak State ------------ > --- POWER ------------ (None) > --- PROPULSION ------- Aluminum Leg Gravmag System > --- UTILITY ---------- (None) > --- WEAPON ----------- Light Assault Rifle Makeshift Spear > --- INVENTORY -------- Ion Engine AWS/Autocannon [Rating: 13] Favorites ----------- Power Ion Engine Engine Ion Engine Propulsion Aluminum Leg Leg Aluminum Leg Hover Unit Gravmag System Utility Large Storage Unit Storage Large Storage Unit Weapon Light Assault Rifle Energy Gun Medium Laser Ballistic Gun Light Assault Rifle Ballistic Cannon Light Cannon Piercing Weapon Makeshift Spear Build | -11 -10 -10 -10 ------- Run | Scr Mat Min Exi Slots Evolved . | . . . . Power . | . . . . Propulsion . | . . . . Utility . | . . . . Weapon . | . . . . Parts Attached 11 | 6 1 1 3 Power 1 | 1 . . . Engine 1 | 1 . . . Core . | . . . . Reactor . | . . . . Propulsion 3 | 2 . . 1 Treads . | . . . . Leg 2 | 2 . . . Wheel . | . . . . Hover 1 | . . . 1 Flight . | . . . . Utility 2 | 1 1 . . Device . | . . . . Storage 2 | 1 1 . . Processor . | . . . . Hackware . | . . . . Protection . | . . . . Artifact . | . . . . Weapon 5 | 2 . 1 2 Energy Gun 2 | 2 . . . Energy Cannon . | . . . . Ballistic Gun 1 | . . 1 . Ballistic Cannon 1 | . . . 1 Launcher . | . . . . Special Weapon . | . . . . Impact Weapon . | . . . . Slashing Weapon . | . . . . Piercing Weapon 1 | . . . 1 Special Melee Weapon . | . . . . Unidentified Prototypes . | . . . . Parts Lost 6 | . . . 6 Power 1 | . . . 1 Propulsion 3 | . . . 3 Utility . | . . . . Weapon 2 | . . . 2 Highest Loss Streak 6 | . . . 6 Average Slot Usage (%) 84 | . 85 83 84 Engine 13 | . 14 14 13 Leg 27 | . 28 28 27 Storage 13 | . 14 14 13 Energy Gun 8 | . 28 18 4 Ballistic Gun 11 | . . 8 14 Ballistic Cannon 7 | . . . 9 Naked Turns . | . . . . Heaviest Build 25 | 13 25 25 25 Greatest Support 20 | 20 20 20 20 Greatest Overweight (x) 1 | 1 1 1 1 Average Overweight (x) . | . . 1 . Largest Inventory Capacity 10 | 6 10 10 10 Average Capacity 9 | 5 9 10 9 Most Carried 9 | 4 2 4 9 Average Carried 5 | 1 1 2 6 Final Capacity 10 | 6 10 10 4 Final Carried 4 | 1 2 4 4 Class Distribution -------------------- 100% | Mutant Dominant Class ---------------- Mutant | -10/Materials Mutant | -10/Mines Mutant | -10/Exiles Resources | -11 -10 -10 -10 ----------- Run | Scr Mat Min Exi Matter Collected 318 | 242 . 28 48 Remotely . | . . . . Salvage Created 61 | . . . 61 Parts 6 | . . . 6 Haulers Intercepted . | . . . . Recyclers Shooed . | . . . . Parts Field Recycled . | . . . . Retrieved Matter . | . . . . Parts Self-Destructed . | . . . . Prevented . | . . . . Kills | -11 -10 -10 -10 ------- Run | Scr Mat Min Exi Combat Hostiles Destroyed 2 | . . . 2 Melee 1 | . . . 1 AOE 1 | . . . 1 Classes Destroyed 1 | . . . 1 Programmer 2 | . . . 2 Best Kill Streak 1 | . . . 1 Combat Bots Only 1 | . . . 1 Max Kills in Single Turn 1 | . . . 1 Gunslinging . | . . . . Exploded 1 | . . . 1 Melee 1 | . . . 1 Uniques/NPCs Destroyed . | . . . . Combat | -11 -10 -10 -10 -------- Run | Scr Mat Min Exi Damage Taken 687 | . . . 687 Core 251 | . . . 251 Absorbed by Shields . | . . . . Core Remaining (%) 100 | 100 . . . Volleys Fired 10 | . 2 . 8 Largest 2 | . 2 . 2 Hottest 100 | . 100 . 55 Shots Fired 16 | . 4 . 12 Gun 9 | . 4 . 5 Cannon 7 | . . . 7 Launcher . | . . . . Special . | . . . . Kinetic 12 | . . . 12 Thermal 4 | . 4 . . Explosive . | . . . . Electromagnetic . | . . . . Robot Hit Streak 5 | . 1 . 5 Robot Miss Streak 3 | . 2 . 3 Penetration Max . | . . . . Secondary Targets . | . . . . Shots Hit Robots 9 | . 1 . 8 Core Hits 5 | . 1 . 4 Critical Hits 1 | . . . 1 Critical Kills . | . . . . Critical Parts Destroyed 1 | . . . 1 Melee Attacks 4 | . . . 4 Impact . | . . . . Slashing . | . . . . Piercing 4 | . . . 4 Sneak Attacks . | . . . . Combat Hostiles . | . . . . Follow-up Attacks . | . . . . Damage Inflicted 157 | . 24 . 133 Guns 41 | . 24 . 17 Cannons 55 | . . . 55 Explosions . | . . . . Melee 61 | . . . 61 Ramming . | . . . . Kinetic 72 | . . . 72 Thermal 24 | . 24 . . Explosive . | . . . . Electromagnetic . | . . . . Impact . | . . . . Slashing . | . . . . Piercing 61 | . . . 61 Highest Corruption 3 | . . . 3 Average Corruption 1 | . . . 1 Corruption Purged . | . . . . Overload Shots . | . . . . Overflow Damage . | . . . . Projectiles . | . . . . Explosions . | . . . . Melee . | . . . . Knockbacks 1 | . . . 1 Impact . | . . . . Kinetic 1 | . . . 1 Secondary . | . . . . Self-Inflicted Damage . | . . . . Shots . | . . . . Rammed . | . . . . Targets Rammed . | . . . . Kicked . | . . . . Crushed . | . . . . Highest Temperature 39 | . 39 . 28 Average Temperature 16 | . 20 . 13 Received Heat Transfer . | . . . . Siege Activations . | . . . . Robots Corrupted . | . . . . Combat Hostiles . | . . . . Parts Fried . | . . . . Impact Corruptions . | . . . . Robots Melted . | . . . . Combat Hostiles . | . . . . Parts Melted . | . . . . Heat Transferred 74 | . 74 . . Parts Sabotaged . | . . . . Parts Stolen . | . . . . Parts Stripped . | . . . . Power Chain Reactions . | . . . . Missiles Intercepted . | . . . . Alert | -11 -10 -10 -10 ------- Run | Scr Mat Min Exi Peak Influence 50 | . 50 19 . Initial 19 | . . 19 . Average 14 | . 19 19 . Maximum Alert Level . | . . . . Low Security (%) 100 | 100 100 100 . Level 1 . | . . . . Level 2 . | . . . . Level 3 . | . . . . Level 4 . | . . . . Level 5 . | . . . . High Security . | . . . . Max Security . | . . . . Squads Dispatched 3 | . 3 . . Investigation 1 | . 1 . . Extermination . | . . . . Reinforcement 2 | . 2 . . Assault . | . . . . Garrison . | . . . . Intercept . | . . . . Construction Impeded . | . . . . Haulers Reinforced . | . . . . Stealth | -11 -10 -10 -10 --------- Run | Scr Mat Min Exi Distress Signals . | . . . . Communications Jammed . | . . . . Distress Signals . | . . . . Times Spotted 24 | . 3 . 21 Peak Tracking Total 23 | . 2 . 23 Tactical Retreats . | . . . . Traps | -11 -10 -10 -10 ------- Run | Scr Mat Min Exi Traps Triggered 1 | . 1 . . Indirectly . | . . . . Trap Hack Attempts . | . . . . Triggered . | . . . . Disarmed . | . . . . Reprogrammed . | . . . . Reused . | . . . . Traps Extracted . | . . . . Installed . | . . . . Triggered . | . . . . Exploded 2 | . . . 2 Machines | -11 -10 -10 -10 ---------- Run | Scr Mat Min Exi Machines Disabled 1 | . . . 1 Max in Single Turn 1 | . . . 1 Machines Sabotaged . | . . . . Garrisons Compromised . | . . . . Overloaded Fab Kills . | . . . . Fab Network Shutdowns . | . . . . Hacking | -11 -10 -10 -10 --------- Run | Scr Mat Min Exi Machines Accessed 4 | . 2 1 1 Terminals 3 | . 2 1 . Fabricators . | . . . . Repair Stations . | . . . . Recycling Units . | . . . . Scanalyzers . | . . . . Garrison Access . | . . . . Total Hacks 11 | . 7 3 1 Successful 5 | . 3 1 1 Failed 6 | . 4 2 . Catastrophic 2 | . 2 . . Database Lockouts . | . . . . Manual 5 | . 2 2 1 Terminals 10 | . 7 3 . Fabricators . | . . . . Repair Stations . | . . . . Recycling Units . | . . . . Scanalyzers . | . . . . Garrison Access . | . . . . Terminal Hacks 5 | . 3 1 1 Robot Analysis 1 | . 1 . . Dispatch Records 1 | . . 1 . Recall Investigation 1 | . 1 . . Zone Layout 1 | . 1 . . EX-Prototype ID Bank 1 | . . . 1 Fabricator Hacks . | . . . . Repair Station Hacks . | . . . . Recycling Unit Hacks . | . . . . Scanalyzer . | . . . . Garrison Access Hacks . | . . . . Unauthorized Hacks . | . . . . Terminals . | . . . . Fabricators . | . . . . Repair Stations . | . . . . Recycling Units . | . . . . Scanalyzers . | . . . . Garrison Access . | . . . . Data Cores Recovered . | . . . . Used . | . . . . Hacking Detections 3 | . 2 1 . Full Trace Events . | . . . . Feedback Events . | . . . . Feedback Blocked . | . . . . Robot Schematics Acquired . | . . . . Robots Built . | . . . . Matter . | . . . . Time . | . . . . Total Robot Build Rating . | . . . . Part Schematics Acquired . | . . . . Parts Built . | . . . . Matter . | . . . . Time . | . . . . Total Part Build Rating . | . . . . Parts Repaired . | . . . . Time . | . . . . Parts Recycled . | . . . . Recycled Matter . | . . . . Retrieved Matter . | . . . . Retrieved Components . | . . . . Parts Scanalyzed . | . . . . Part Schematics Acquired . | . . . . Parts Damaged . | . . . . Bothacking | -11 -10 -10 -10 ------------ Run | Scr Mat Min Exi Used RIF Installer . | . . . . Robots Hacked . | . . . . Non-combat . | . . . . Combat . | . . . . Robot Hacks Applied . | . . . . Relay Couplers Released . | . . . . Robots Rewired . | . . . . Allies Hacked . | . . . . Hacks Repelled . | . . . . Allies | -11 -10 -10 -10 -------- Run | Scr Mat Min Exi Total Allies . | . . . . Largest Group . | . . . . Highest-Rated Group . | . . . . Highest-Rated Ally . | . . . . Total Orders . | . . . . Ally Attacks . | . . . . Total Damage . | . . . . Kills . | . . . . Allies Corrupted . | . . . . Allies Melted . | . . . . Intel | -11 -10 -10 -10 ------- Run | Scr Mat Min Exi Robot Analysis Total 1 | . 1 . . Derelict Logs Recovered . | . . . . Drone Launches . | . . . . Drone Recoveries . | . . . . Exploration | -11 -10 -10 -10 ------------- Run | Scr Mat Min Exi Turns Passed 865 | 59 94 101 611 Spaces Moved 506 | 43 58 65 340 Core 14 | 13 . . 1 Treads . | . . . . Legs 489 | 30 58 65 336 Wheels . | . . . . Hover 3 | . . . 3 Flight . | . . . . Fastest Speed 50 | 50 120 150 50 Average Speed 145 | 105 147 150 148 Slowest Speed 150 | 120 150 150 150 Overloaded Moves . | . . . . Propulsion Burnouts . | . . . . Robots Hopped . | . . . . Cave-ins Triggered . | . . . . Exploration Rate (%) 25 | 3 21 15 62 Regions Visited 3 Branch Regions 2 Pre-discovered Areas . | . . . . Known Exits Taken . | . . . . Unknown Exits Taken 3 | 1 1 1 . Scrap Searched . | . . . . Spaces Dug . | . . . . Terrain Destroyed . | . . . . Melee . | . . . . Projectile . | . . . . AOE . | . . . . Terrain Rammed . | . . . . Walls Destroyed . | . . . . Machines Disabled . | . . . . Actions | -11 -10 -10 -10 --------- Run | Scr Mat Min Exi Total 621 | 57 63 69 432 Wait 69 | . . . 69 Move 503 | 42 57 64 340 Hop . | . . . . Pick Up 17 | 8 2 3 4 Fast Attach 1 | . . . 1 Attach 9 | 6 . 1 2 Detach . | . . . . Swap 1 | . 1 . . Drop 7 | 1 1 1 4 Fire 10 | . 2 . 8 Melee 4 | . . . 4 Ram . | . . . . Kick . | . . . . Crush . | . . . . Escape Stasis . | . . . . Rewire . | . . . . Trap . | . . . . Miscellaneous . | . . . . Route ------- -11/Scrapyard -10/Materials -10/Mines -10/Exiles (discovered 1 exit: [*Min]) History --------- Turn | Location | Event 19 | -11/Scrapyard | Discovered new exit (range 16) 60 | -11/Scrapyard | Entered Materials 108 | -10/Materials | Discovered new exit (range 15) 154 | -10/Materials | Entered Mines 219 | -10/Mines | Met a Derelict bent on vengeance 239 | -10/Mines | A weapon hastily lodged in a ceiling crevice suddenly fell to the ground 249 | -10/Mines | Deemed a non-threat by the Exiles lab entrance 249 | -10/Mines | Discovered new exit (range 5) 255 | -10/Mines | Entered Exiles 299 | -10/Exiles | Met 8R-AWN 306 | -10/Exiles | Build established: Mutant 320 | -10/Exiles | Met EX-HEX 362 | -10/Exiles | Met EX-BIN 382 | -10/Exiles | Aligned with FarCom system 383 | -10/Exiles | Given EX-Vault access code 418 | -10/Exiles | Opened EX-Vault 433 | -10/Exiles | Found AWS/Autocannon 481 | -10/Exiles | Exiles lab attacked by MAIN.C 668 | -10/Exiles | Discovered new exit (range 11) 861 | -10/Exiles | Core integrity fell below 50% 865 | -10/Exiles | Core integrity fell below 20% 866 | -10/Exiles | Destroyed by H-55 Commando with Assault Rifle Last Messages --------------- 00846_ Machine disabled. 00849_ Dropped Lrg. Storage Unit. 00852_ Penetrated by Slug. 00853_ Ion Engine destroyed. 00854_ P-60 Hacker destroyed. 00855_ Penetrated by Slug. 00855_ Aluminum Leg destroyed. 00856_ Acquired 18 matter. 00858_ Penetrated by Slug. 00858_ Acquired Gravmag System. 00860_ Penetrated by Slug. 00861_ Lgt. Assault Rifle destroyed. 00861_ Penetrated by Slug. 00863_ Slug penetrates Wall. 00864_ Penetrated by Slug. 00864_ Aluminum Leg destroyed. 00864_ Penetrated by Slug. 00865_ Gravmag System destroyed. 00866_ Slug penetrates G-34 Mercenary. 00866_ G-34 Mercenary destroyed. Map ----- +----------------------------------------------------+ | ?????????????????????????????????????????????????? | | ???????????????????????????????????????????????### | | ???????????????????????????????????????????????""" | | ?####??????????????????????????????????????????""" | | ## ##???????????????????????????????????????#""X | | # #???????????????????????????????????????#" | | # < #???????????????????????????????????????#" | | # ###?????????????????????????????????????#""" | | # #?????????????????????????????????????##"# | | # #?????????????????????????????????????????? | | ## #?????????????????????????????????????????? | | ?# ##????????????????????????????????????????? | | ?## #????????????#######?????????????????????? | | ??# #######??????#!!! "#?????????????????????? | | ??# #""##?????# "#?????????????????????? | | ??## #?????# "#?????????????????????? | | ???##" ##???## ""#?????????????????????? | | ???#"" #####" ""#?????????????????????? | | ???#### ##" ""#??????????????"??????? | | ??????## #"" #??????????????? ????? | | ???????#"## #??????????????" ?????? | | ???????####### ##?????????????" "????? | | ?????????????### "#????????????? ""????? | | ???????######## ###???????????" "?????? | | ???????# !!""""" !!! ##??????????# #?????? | | ???????#! ###%* @ | ######???### ###?### | | ???????#! "#?## !h[ #####X# #"###"" | | ???????#! ##??# ! pg """""" | | ???????# """"""###???# ; =% "" """ | | ???????##########?????#### ggb " | | ?????????????????????????### ph | | ???????????????????????????### h p | | ?????????????????????????????## g | | ??????????????????????????????## | | ???????????????????????????????##" | | ????????????????????????????????#""" | | ????????????????????????????????#" | | ???????????????????????????????#"" "" | | ???????????????????????????????#""" """# | | ??????????????????????????????#""" """## | | ??????????????????????????????#""" "#? | | ???????????????????????????????"" ##? | | ???????????????????????????????""" ? | | ???????????????????????????????"" ! | | ????????????????????????????????"" | | ????????????????????????????????"""" | | ????????????????????????????????? | | ?????????????????????????????????? ? | | ???????????????????????????????????"" ? | | ????????????????????????????????????? ?? | +----------------------------------------------------+ Best States ------------- Heat Dissipation 25 Energy Generation 10 Energy Capacity 250 Matter Stores 300 Matter Capacity 300 Sight Range 16 Terrain Scan Density 10 Evasion (%) 45 Item Schematics ----------------- None Robot Schematics ------------------ None Fabricated ------------ Nothing Alien Tech Used ----------------- None Achievements -------------- None Challenges ------------ None Game ------ Seed DataSingularityLaser Manual? 0 Play Time 00:10:23 Cumulative 102.5 hours Start 2021.04.21 @ 03:07:40 End 2021.04.21 @ 03:16:23 Sessions 1 Manual Loads 0 Difficulty Rogue Special Mode None Game No. 43 Rogue 43 Adventurer 0 Explorer 0 Win Type - Total 1 Types 1/0/0/0/0/0/0/0/0 Lore% 52 Gallery% 61 Achievement% 48 Wizard Run 0 Options --------- ASCII 0 Keyboard 0 Movement Mouse Keybinds 0 Fullscreen 2 Font 12/Smallcaps Map View 83x54 Tactical HUD 1 Map Filters NONE Filters NONE Steam X RUN: 7e350cf5-bfbd-45a9-a21a-55ecde05a847